Workbook

Sheet Sheet1
A1: Profit and Loss by Month
A2: Shady Oaks Partners LLC
A3: April 1, 2025-April 14, 2026
B5: Apr 2025 | C5: May 2025 | D5: Jun 2025 | E5: Jul 2025 | F5: Aug 2025 | G5: Sep 2025 | H5: Oct 2025 | I5: Nov 2025 | J5: Dec 2025 | K5: Jan 2026 | L5: Feb 2026 | M5: Mar 2026 | N5: Apr 1-14 2026 | O5: Total
A6: Income
A7: 41000 Site & Lodging Revenue | B7: 39134.66 | C7: 34604.77 | D7: 37800.48 | E7: 41286.84 | F7: 40236.04 | G7: 43245.03 | H7: 38261.42 | I7: 25039.06 | J7: 26728.33 | K7: 25141.64 | L7: 27952.73 | M7: 29877.72 | N7: 18194.11 | O7: =B7+C7+D7+E7+F7+G7+H7+I7+J7+K7+L7+M7+N7 -> 427502.83
A8: 41100 Accommodation Revenue
A9: 41120 Lodging Revenue
A10: 41121 Lodging - Cabins | C10: 1338.6 | D10: 4786.95 | H10: 676.8 | O10: =B10+C10+D10+E10+F10+G10+H10+I10+J10+K10+L10+M10+N10 -> 6802.35
A11: Total for 41120 Lodging Revenue | C11: =C9+C10 -> 1338.6 | D11: =D9+D10 -> 4786.95 | H11: =H9+H10 -> 676.8 | O11: =B11+C11+D11+E11+F11+G11+H11+I11+J11+K11+L11+M11+N11 -> 6802.35
A12: Total for 41100 Accommodation Revenue | C12: =C8+C11 -> 1338.6 | D12: =D8+D11 -> 4786.95 | H12: =H8+H11 -> 676.8 | O12: =B12+C12+D12+E12+F12+G12+H12+I12+J12+K12+L12+M12+N12 -> 6802.35
A13: Total for 41000 Site & Lodging Revenue | B13: =B7+B12 -> 39134.66 | C13: =C7+C12 -> 35943.37 | D13: =D7+D12 -> 42587.43 | E13: =E7+E12 -> 41286.84 | F13: =F7+F12 -> 40236.04 | G13: =G7+G12 -> 43245.03 | H13: =H7+H12 -> 38938.22 | I13: =I7+I12 -> 25039.06 | J13: =J7+J12 -> 26728.33 | K13: =K7+K12 -> 25141.64 | L13: =L7+L12 -> 27952.73 | M13: =M7+M12 -> 29877.72 | N13: =N7+N12 -> 18194.11 | O13: =B13+C13+D13+E13+F13+G13+H13+I13+J13+K13+L13+M13+N13 -> 434305.18
A14: Total for Income | B14: =B13 -> 39134.66 | C14: =C13 -> 35943.37 | D14: =D13 -> 42587.43 | E14: =E13 -> 41286.84 | F14: =F13 -> 40236.04 | G14: =G13 -> 43245.03 | H14: =H13 -> 38938.22 | I14: =I13 -> 25039.06 | J14: =J13 -> 26728.33 | K14: =K13 -> 25141.64 | L14: =L13 -> 27952.73 | M14: =M13 -> 29877.72 | N14: =N13 -> 18194.11 | O14: =B14+C14+D14+E14+F14+G14+H14+I14+J14+K14+L14+M14+N14 -> 434305.18
A15: Cost of Goods Sold
A16: Gross Profit | B16: =B14-B15 -> 39134.66 | C16: =C14-C15 -> 35943.37 | D16: =D14-D15 -> 42587.43 | E16: =E14-E15 -> 41286.84 | F16: =F14-F15 -> 40236.04 | G16: =G14-G15 -> 43245.03 | H16: =H14-H15 -> 38938.22 | I16: =I14-I15 -> 25039.06 | J16: =J14-J15 -> 26728.33 | K16: =K14-K15 -> 25141.64 | L16: =L14-L15 -> 27952.73 | M16: =M14-M15 -> 29877.72 | N16: =N14-N15 -> 18194.11 | O16: =B16+C16+D16+E16+F16+G16+H16+I16+J16+K16+L16+M16+N16 -> 434305.18
A17: Expenses
A18: 61000 Site & Lodging Expenses
A19: 61200 RV Site Expenses
A20: 61205 RV Sites - Supplies | D20: 491.91 | O20: =B20+C20+D20+E20+F20+G20+H20+I20+J20+K20+L20+M20+N20 -> 491.91
A21: 61230 RV Sites - Pest Control | B21: 300 | G21: 300 | O21: =B21+C21+D21+E21+F21+G21+H21+I21+J21+K21+L21+M21+N21 -> 600
A22: Total for 61200 RV Site Expenses | B22: =B19+B20+B21 -> 300 | D22: =D19+D20+D21 -> 491.91 | G22: =G19+G20+G21 -> 300 | O22: =B22+C22+D22+E22+F22+G22+H22+I22+J22+K22+L22+M22+N22 -> 1091.91
A23: 61300 Lodging Expenses
A24: 61305 Lodging - Guest Amenities & Supplies | B24: 1023.28 | C24: 1098.8 | D24: 2090.88 | E24: 4247.21 | F24: 730.99 | G24: 1893.84 | H24: 1090.87 | I24: 1048.47 | J24: 160.62 | K24: 146.47 | L24: 52.55 | M24: 234.72 | O24: =B24+C24+D24+E24+F24+G24+H24+I24+J24+K24+L24+M24+N24 -> 13818.7
A25: 61310 Lodging - Linen Expense | J25: 49.44 | O25: =B25+C25+D25+E25+F25+G25+H25+I25+J25+K25+L25+M25+N25 -> 49.44
A26: Total for 61300 Lodging Expenses | B26: =B23+B24+B25 -> 1023.28 | C26: =C23+C24+C25 -> 1098.8 | D26: =D23+D24+D25 -> 2090.88 | E26: =E23+E24+E25 -> 4247.21 | F26: =F23+F24+F25 -> 730.99 | G26: =G23+G24+G25 -> 1893.84 | H26: =H23+H24+H25 -> 1090.87 | I26: =I23+I24+I25 -> 1048.47 | J26: =J23+J24+J25 -> 210.06 | K26: =K23+K24+K25 -> 146.47 | L26: =L23+L24+L25 -> 52.55 | M26: =M23+M24+M25 -> 234.72 | O26: =B26+C26+D26+E26+F26+G26+H26+I26+J26+K26+L26+M26+N26 -> 13868.14
A27: 61400 Housekeeping | E27: 15.4 | O27: =B27+C27+D27+E27+F27+G27+H27+I27+J27+K27+L27+M27+N27 -> 15.4
A28: 61405 Housekeeping - Supplies | C28: 80.35 | D28: 31.63 | G28: 246.72 | I28: 3.27 | O28: =B28+C28+D28+E28+F28+G28+H28+I28+J28+K28+L28+M28+N28 -> 361.97
A29: Total for 61400 Housekeeping | C29: =C27+C28 -> 80.35 | D29: =D27+D28 -> 31.63 | E29: =E27+E28 -> 15.4 | G29: =G27+G28 -> 246.72 | I29: =I27+I28 -> 3.27 | O29: =B29+C29+D29+E29+F29+G29+H29+I29+J29+K29+L29+M29+N29 -> 377.37
A30: 61500 Front Desk
A31: 61505 Front Desk - Supplies | B31: 216.89 | J31: 40.48 | M31: 81.66 | O31: =B31+C31+D31+E31+F31+G31+H31+I31+J31+K31+L31+M31+N31 -> 339.03
A32: 61525 Front Desk - Copies & Printing | M32: 65.84 | O32: =B32+C32+D32+E32+F32+G32+H32+I32+J32+K32+L32+M32+N32 -> 65.84
A33: Total for 61500 Front Desk | B33: =B30+B31+B32 -> 216.89 | J33: =J30+J31+J32 -> 40.48 | M33: =M30+M31+M32 -> 147.5 | O33: =B33+C33+D33+E33+F33+G33+H33+I33+J33+K33+L33+M33+N33 -> 404.87
A34: Total for 61000 Site & Lodging Expenses | B34: =B18+B22+B26+B29+B33 -> 1540.17 | C34: =C18+C22+C26+C29+C33 -> 1179.15 | D34: =D18+D22+D26+D29+D33 -> 2614.42 | E34: =E18+E22+E26+E29+E33 -> 4262.61 | F34: =F18+F22+F26+F29+F33 -> 730.99 | G34: =G18+G22+G26+G29+G33 -> 2440.56 | H34: =H18+H22+H26+H29+H33 -> 1090.87 | I34: =I18+I22+I26+I29+I33 -> 1051.74 | J34: =J18+J22+J26+J29+J33 -> 250.54 | K34: =K18+K22+K26+K29+K33 -> 146.47 | L34: =L18+L22+L26+L29+L33 -> 52.55 | M34: =M18+M22+M26+M29+M33 -> 382.22 | O34: =B34+C34+D34+E34+F34+G34+H34+I34+J34+K34+L34+M34+N34 -> 15742.29
A35: 65000 Payroll Expenses
A36: 65001 Gross Wages | B36: 5949.28 | C36: 12491.36 | D36: 8175.19 | E36: 7984.09 | F36: 8143.35 | G36: 7696.07 | H36: 11289.68 | I36: 8828.47 | O36: =B36+C36+D36+E36+F36+G36+H36+I36+J36+K36+L36+M36+N36 -> 70557.49
A37: 65080 Payroll Processing Fees | B37: 128 | C37: 140 | D37: 128 | E37: 128 | F37: 140 | G37: 128 | H37: 128 | I37: 128 | J37: 116 | O37: =B37+C37+D37+E37+F37+G37+H37+I37+J37+K37+L37+M37+N37 -> 1164
A38: 65085 Payroll Taxes | B38: 547.69 | C38: 802.4 | D38: 590.54 | E38: 652.59 | F38: 652.73 | G38: 848.23 | H38: 888.17 | I38: 688.54 | O38: =B38+C38+D38+E38+F38+G38+H38+I38+J38+K38+L38+M38+N38 -> 5670.89
A39: Total for 65000 Payroll Expenses | B39: =B35+B36+B37+B38 -> 6624.97 | C39: =C35+C36+C37+C38 -> 13433.76 | D39: =D35+D36+D37+D38 -> 8893.73 | E39: =E35+E36+E37+E38 -> 8764.68 | F39: =F35+F36+F37+F38 -> 8936.08 | G39: =G35+G36+G37+G38 -> 8672.3 | H39: =H35+H36+H37+H38 -> 12305.85 | I39: =I35+I36+I37+I38 -> 9645.01 | J39: =J35+J36+J37+J38 -> 116 | O39: =B39+C39+D39+E39+F39+G39+H39+I39+J39+K39+L39+M39+N39 -> 77392.38
A40: 71000 Utility Expenses
A41: 71015 Utilities - Internet | B41: 290 | C41: 290 | D41: 290 | E41: 480 | F41: 571.2 | G41: 791.44 | H41: 564 | I41: 560 | J41: 560 | K41: 560 | L41: 460 | M41: 510 | O41: =B41+C41+D41+E41+F41+G41+H41+I41+J41+K41+L41+M41+N41 -> 5926.64
A42: 71020 Utilities - TV Cable/Sat | B42: 608.7 | C42: 608.7 | D42: 608.7 | E42: 608.7 | F42: 608.7 | G42: 1005.88 | H42: 608.7 | I42: 608.7 | J42: 608.7 | K42: 608.7 | L42: 762.43 | M42: 1096.7 | O42: =B42+C42+D42+E42+F42+G42+H42+I42+J42+K42+L42+M42+N42 -> 8343.31
A43: 71025 Utilities - Electric | B43: 3222.35 | C43: 3206.68 | D43: 3505.01 | E43: 7336.54 | F43: 8820.63 | G43: 9623.93 | H43: 7167.5 | I43: 5742.09 | J43: 3163.27 | K43: 4086.23 | L43: 4756.16 | M43: 4448.99 | O43: =B43+C43+D43+E43+F43+G43+H43+I43+J43+K43+L43+M43+N43 -> 65079.38
A44: 71030 Utilities - Water | B44: 1657.55 | C44: 1337.55 | D44: 1352.55 | E44: 1538.2 | F44: 1368.2 | G44: 1414.2 | H44: 1457.2 | I44: 1414.2 | J44: 1394.2 | K44: 1423 | L44: 1265 | M44: 1141.2 | O44: =B44+C44+D44+E44+F44+G44+H44+I44+J44+K44+L44+M44+N44 -> 16763.05
A45: 71040 Utilities - Gas | B45: 126.75 | C45: 187.99 | D45: 70.01 | E45: 73.73 | N45: 93.39 | O45: =B45+C45+D45+E45+F45+G45+H45+I45+J45+K45+L45+M45+N45 -> 551.87
A46: 71045 Utilities - Propane | B46: 375 | O46: =B46+C46+D46+E46+F46+G46+H46+I46+J46+K46+L46+M46+N46 -> 375
A47: 71046 Solar Energy | B47: 448 | O47: =B47+C47+D47+E47+F47+G47+H47+I47+J47+K47+L47+M47+N47 -> 448
A48: 71050 Utilities - Trash | B48: 112.84 | C48: 112.84 | D48: 112.84 | E48: 112.84 | F48: 112.84 | G48: 112.84 | H48: 112.84 | I48: 112.84 | J48: 112.84 | K48: 124.13 | L48: 124.13 | M48: 124.13 | O48: =B48+C48+D48+E48+F48+G48+H48+I48+J48+K48+L48+M48+N48 -> 1387.95
A49: Total for 71000 Utility Expenses | B49: =B40+B41+B42+B43+B44+B45+B46+B47+B48 -> 6841.19 | C49: =C40+C41+C42+C43+C44+C45+C46+C47+C48 -> 5743.76 | D49: =D40+D41+D42+D43+D44+D45+D46+D47+D48 -> 5939.11 | E49: =E40+E41+E42+E43+E44+E45+E46+E47+E48 -> 10150.01 | F49: =F40+F41+F42+F43+F44+F45+F46+F47+F48 -> 11481.57 | G49: =G40+G41+G42+G43+G44+G45+G46+G47+G48 -> 12948.29 | H49: =H40+H41+H42+H43+H44+H45+H46+H47+H48 -> 9910.24 | I49: =I40+I41+I42+I43+I44+I45+I46+I47+I48 -> 8437.83 | J49: =J40+J41+J42+J43+J44+J45+J46+J47+J48 -> 5839.01 | K49: =K40+K41+K42+K43+K44+K45+K46+K47+K48 -> 6802.06 | L49: =L40+L41+L42+L43+L44+L45+L46+L47+L48 -> 7367.72 | M49: =M40+M41+M42+M43+M44+M45+M46+M47+M48 -> 7321.02 | N49: =N40+N41+N42+N43+N44+N45+N46+N47+N48 -> 93.39 | O49: =B49+C49+D49+E49+F49+G49+H49+I49+J49+K49+L49+M49+N49 -> 98875.2
A50: 72000 General & Administrative Expenses
A51: 72205 G&A - Credit Card Processing Fees | B51: 23.25 | C51: 23.75 | D51: 24.15 | E51: 22.85 | F51: 23.85 | G51: 23.75 | H51: 22.35 | I51: 23.3 | J51: 484.37 | K51: 998.63 | L51: 543.5 | M51: 585.93 | N51: 563.67 | O51: =B51+C51+D51+E51+F51+G51+H51+I51+J51+K51+L51+M51+N51 -> 3363.35
A52: 72210 G&A - PMS & POS Fees | B52: 1474.32 | C52: 628.99 | D52: 649.33 | E52: 675.1 | F52: 1299.15 | G52: 1147.76 | H52: 875.55 | I52: 724.48 | J52: 22.25 | O52: =B52+C52+D52+E52+F52+G52+H52+I52+J52+K52+L52+M52+N52 -> 7496.93
A53: 72215 G&A - Dues & Subscriptions | B53: 262.99 | C53: 380.99 | D53: 262.99 | E53: 338.99 | F53: 300.99 | G53: 300.99 | H53: 262.99 | I53: 300.99 | J53: 410.99 | K53: 357 | L53: 281 | M53: 357 | N53: 38 | O53: =B53+C53+D53+E53+F53+G53+H53+I53+J53+K53+L53+M53+N53 -> 3855.91
A54: 72225 G&A - Professional Services | B54: 995 | E54: 1000 | H54: 2415.7 | J54: 620 | O54: =B54+C54+D54+E54+F54+G54+H54+I54+J54+K54+L54+M54+N54 -> 5030.7
A55: 72230 G&A - Postage & Shipping | I55: 15.6 | O55: =B55+C55+D55+E55+F55+G55+H55+I55+J55+K55+L55+M55+N55 -> 15.6
A56: 72235 G&A - Bank Fees | B56: 1.75 | I56: 41.08 | L56: 341.3 | M56: 2.14 | O56: =B56+C56+D56+E56+F56+G56+H56+I56+J56+K56+L56+M56+N56 -> 386.27
A57: 72255 G&A - Meals & Entertainment | I57: 203.3 | O57: =B57+C57+D57+E57+F57+G57+H57+I57+J57+K57+L57+M57+N57 -> 203.3
A58: 72260 G&A - Travel & Mileage | E58: 265.32 | O58: =B58+C58+D58+E58+F58+G58+H58+I58+J58+K58+L58+M58+N58 -> 265.32
A59: 72500 Insurance
A60: 72501 Package Policy | B60: 2276.59 | C60: 2276.59 | D60: 2276.59 | E60: 2276.59 | F60: 2276.59 | G60: 2276.59 | H60: 2276.59 | I60: 2292.45 | O60: =B60+C60+D60+E60+F60+G60+H60+I60+J60+K60+L60+M60+N60 -> 18228.58
A61: 72510 General Liability Insurance | J61: 2281.5 | K61: 2281.5 | L61: 2281.5 | M61: 2281.5 | O61: =B61+C61+D61+E61+F61+G61+H61+I61+J61+K61+L61+M61+N61 -> 9126
A62: Total for 72500 Insurance | B62: =B59+B60+B61 -> 2276.59 | C62: =C59+C60+C61 -> 2276.59 | D62: =D59+D60+D61 -> 2276.59 | E62: =E59+E60+E61 -> 2276.59 | F62: =F59+F60+F61 -> 2276.59 | G62: =G59+G60+G61 -> 2276.59 | H62: =H59+H60+H61 -> 2276.59 | I62: =I59+I60+I61 -> 2292.45 | J62: =J59+J60+J61 -> 2281.5 | K62: =K59+K60+K61 -> 2281.5 | L62: =L59+L60+L61 -> 2281.5 | M62: =M59+M60+M61 -> 2281.5 | O62: =B62+C62+D62+E62+F62+G62+H62+I62+J62+K62+L62+M62+N62 -> 27354.58
A63: Total for 72000 General & Administrative Expenses | B63: =B50+B51+B52+B53+B54+B55+B56+B57+B58+B62 -> 5033.9 | C63: =C50+C51+C52+C53+C54+C55+C56+C57+C58+C62 -> 3310.32 | D63: =D50+D51+D52+D53+D54+D55+D56+D57+D58+D62 -> 3213.06 | E63: =E50+E51+E52+E53+E54+E55+E56+E57+E58+E62 -> 4578.85 | F63: =F50+F51+F52+F53+F54+F55+F56+F57+F58+F62 -> 3900.58 | G63: =G50+G51+G52+G53+G54+G55+G56+G57+G58+G62 -> 3749.09 | H63: =H50+H51+H52+H53+H54+H55+H56+H57+H58+H62 -> 5853.18 | I63: =I50+I51+I52+I53+I54+I55+I56+I57+I58+I62 -> 3601.2 | J63: =J50+J51+J52+J53+J54+J55+J56+J57+J58+J62 -> 3819.11 | K63: =K50+K51+K52+K53+K54+K55+K56+K57+K58+K62 -> 3637.13 | L63: =L50+L51+L52+L53+L54+L55+L56+L57+L58+L62 -> 3447.3 | M63: =M50+M51+M52+M53+M54+M55+M56+M57+M58+M62 -> 3226.57 | N63: =N50+N51+N52+N53+N54+N55+N56+N57+N58+N62 -> 601.67 | O63: =B63+C63+D63+E63+F63+G63+H63+I63+J63+K63+L63+M63+N63 -> 47971.96
A64: 73000 Marketing
A65: 73005 Marketing - Advertising Spend | B65: 27.74 | D65: 22.17 | E65: 276 | F65: 110.7 | G65: 116.91 | I65: 22.19 | L65: 84 | O65: =B65+C65+D65+E65+F65+G65+H65+I65+J65+K65+L65+M65+N65 -> 659.71
A66: 73010 Marketing - Signs & Flags | E66: 81.37 | O66: =B66+C66+D66+E66+F66+G66+H66+I66+J66+K66+L66+M66+N66 -> 81.37
A67: Total for 73000 Marketing | B67: =B64+B65+B66 -> 27.74 | D67: =D64+D65+D66 -> 22.17 | E67: =E64+E65+E66 -> 357.37 | F67: =F64+F65+F66 -> 110.7 | G67: =G64+G65+G66 -> 116.91 | I67: =I64+I65+I66 -> 22.19 | L67: =L64+L65+L66 -> 84 | O67: =B67+C67+D67+E67+F67+G67+H67+I67+J67+K67+L67+M67+N67 -> 741.08
A68: 74000 Facilities Expenses
A69: 74300 Landscaping
A70: 74320 Landscaping - Services | H70: 450 | O70: =B70+C70+D70+E70+F70+G70+H70+I70+J70+K70+L70+M70+N70 -> 450
A71: Total for 74300 Landscaping | H71: =H69+H70 -> 450 | O71: =B71+C71+D71+E71+F71+G71+H71+I71+J71+K71+L71+M71+N71 -> 450
A72: 74400 Repairs & Maintenance | C72: 295 | D72: 480 | E72: 260 | F72: 2182.37 | G72: 509.6 | H72: -159.18 | I72: -7.7 | L72: 1179.23 | M72: 1335.69 | N72: 275 | O72: =B72+C72+D72+E72+F72+G72+H72+I72+J72+K72+L72+M72+N72 -> 6350.01
A73: 74401 Contractors | B73: 832.5 | C73: 108.41 | D73: 601.5 | E73: 361.44 | F73: 666 | G73: 300 | H73: 463.2 | J73: 420 | O73: =B73+C73+D73+E73+F73+G73+H73+I73+J73+K73+L73+M73+N73 -> 3753.05
A74: 74405 R&M - Supplies | B74: 40.19 | C74: 68.83 | D74: 854.21 | E74: 1987.3 | F74: 292.11 | G74: 569.72 | H74: 188.84 | I74: 172.21 | J74: 25.27 | K74: -442.74 | M74: 244.95 | O74: =B74+C74+D74+E74+F74+G74+H74+I74+J74+K74+L74+M74+N74 -> 4000.89
A75: 74445 R&M - General | B75: 13.4 | D75: 67.89 | F75: 90.55 | G75: 91.23 | I75: 82.25 | O75: =B75+C75+D75+E75+F75+G75+H75+I75+J75+K75+L75+M75+N75 -> 345.32
A76: Total for 74400 Repairs & Maintenance | B76: =B72+B73+B74+B75 -> 886.09 | C76: =C72+C73+C74+C75 -> 472.24 | D76: =D72+D73+D74+D75 -> 2003.6 | E76: =E72+E73+E74+E75 -> 2608.74 | F76: =F72+F73+F74+F75 -> 3231.03 | G76: =G72+G73+G74+G75 -> 1470.55 | H76: =H72+H73+H74+H75 -> 492.86 | I76: =I72+I73+I74+I75 -> 246.76 | J76: =J72+J73+J74+J75 -> 445.27 | K76: =K72+K73+K74+K75 -> -442.74 | L76: =L72+L73+L74+L75 -> 1179.23 | M76: =M72+M73+M74+M75 -> 1580.64 | N76: =N72+N73+N74+N75 -> 275 | O76: =B76+C76+D76+E76+F76+G76+H76+I76+J76+K76+L76+M76+N76 -> 14449.27
A77: Total for 74000 Facilities Expenses | B77: =B68+B71+B76 -> 886.09 | C77: =C68+C71+C76 -> 472.24 | D77: =D68+D71+D76 -> 2003.6 | E77: =E68+E71+E76 -> 2608.74 | F77: =F68+F71+F76 -> 3231.03 | G77: =G68+G71+G76 -> 1470.55 | H77: =H68+H71+H76 -> 942.86 | I77: =I68+I71+I76 -> 246.76 | J77: =J68+J71+J76 -> 445.27 | K77: =K68+K71+K76 -> -442.74 | L77: =L68+L71+L76 -> 1179.23 | M77: =M68+M71+M76 -> 1580.64 | N77: =N68+N71+N76 -> 275 | O77: =B77+C77+D77+E77+F77+G77+H77+I77+J77+K77+L77+M77+N77 -> 14899.27
A78: 75000 Property Taxes | B78: 10194.02 | E78: 83.57 | K78: 5170.4 | N78: 4862.5 | O78: =B78+C78+D78+E78+F78+G78+H78+I78+J78+K78+L78+M78+N78 -> 20310.49
A79: Total for Expenses | B79: =B34+B39+B49+B63+B67+B77+B78 -> 31148.08 | C79: =C34+C39+C49+C63+C67+C77+C78 -> 24139.23 | D79: =D34+D39+D49+D63+D67+D77+D78 -> 22686.09 | E79: =E34+E39+E49+E63+E67+E77+E78 -> 30805.83 | F79: =F34+F39+F49+F63+F67+F77+F78 -> 28390.95 | G79: =G34+G39+G49+G63+G67+G77+G78 -> 29397.7 | H79: =H34+H39+H49+H63+H67+H77+H78 -> 30103 | I79: =I34+I39+I49+I63+I67+I77+I78 -> 23004.73 | J79: =J34+J39+J49+J63+J67+J77+J78 -> 10469.93 | K79: =K34+K39+K49+K63+K67+K77+K78 -> 15313.32 | L79: =L34+L39+L49+L63+L67+L77+L78 -> 12130.8 | M79: =M34+M39+M49+M63+M67+M77+M78 -> 12510.45 | N79: =N34+N39+N49+N63+N67+N77+N78 -> 5832.56 | O79: =B79+C79+D79+E79+F79+G79+H79+I79+J79+K79+L79+M79+N79 -> 275932.67
A80: Net Operating Income | B80: =B16-B79 -> 7986.58 | C80: =C16-C79 -> 11804.14 | D80: =D16-D79 -> 19901.34 | E80: =E16-E79 -> 10481.01 | F80: =F16-F79 -> 11845.09 | G80: =G16-G79 -> 13847.33 | H80: =H16-H79 -> 8835.22 | I80: =I16-I79 -> 2034.33 | J80: =J16-J79 -> 16258.4 | K80: =K16-K79 -> 9828.32 | L80: =L16-L79 -> 15821.93 | M80: =M16-M79 -> 17367.27 | N80: =N16-N79 -> 12361.55 | O80: =B80+C80+D80+E80+F80+G80+H80+I80+J80+K80+L80+M80+N80 -> 158372.51
A81: Other Income
A82: Other Expenses
A83: 93000 Interest Expense | B83: 8037.92 | C83: 8496.45 | D83: 8174.96 | E83: 7152.49 | F83: 8780.33 | G83: 7791.23 | H83: 7908.52 | I83: 7894.55 | J83: 7629.67 | K83: 8140.27 | L83: 7902.52 | M83: 7130.33 | N83: 7420.05 | O83: =B83+C83+D83+E83+F83+G83+H83+I83+J83+K83+L83+M83+N83 -> 102459.29
A84: Total for Other Expenses | B84: =B83 -> 8037.92 | C84: =C83 -> 8496.45 | D84: =D83 -> 8174.96 | E84: =E83 -> 7152.49 | F84: =F83 -> 8780.33 | G84: =G83 -> 7791.23 | H84: =H83 -> 7908.52 | I84: =I83 -> 7894.55 | J84: =J83 -> 7629.67 | K84: =K83 -> 8140.27 | L84: =L83 -> 7902.52 | M84: =M83 -> 7130.33 | N84: =N83 -> 7420.05 | O84: =B84+C84+D84+E84+F84+G84+H84+I84+J84+K84+L84+M84+N84 -> 102459.29
A85: Net Other Income | B85: =B81-B84 -> -8037.92 | C85: =C81-C84 -> -8496.45 | D85: =D81-D84 -> -8174.96 | E85: =E81-E84 -> -7152.49 | F85: =F81-F84 -> -8780.33 | G85: =G81-G84 -> -7791.23 | H85: =H81-H84 -> -7908.52 | I85: =I81-I84 -> -7894.55 | J85: =J81-J84 -> -7629.67 | K85: =K81-K84 -> -8140.27 | L85: =L81-L84 -> -7902.52 | M85: =M81-M84 -> -7130.33 | N85: =N81-N84 -> -7420.05 | O85: =B85+C85+D85+E85+F85+G85+H85+I85+J85+K85+L85+M85+N85 -> -102459.29
A86: Net Income | B86: =B80+B85 -> -51.34 | C86: =C80+C85 -> 3307.69 | D86: =D80+D85 -> 11726.38 | E86: =E80+E85 -> 3328.52 | F86: =F80+F85 -> 3064.76 | G86: =G80+G85 -> 6056.1 | H86: =H80+H85 -> 926.7 | I86: =I80+I85 -> -5860.22 | J86: =J80+J85 -> 8628.73 | K86: =K80+K85 -> 1688.05 | L86: =L80+L85 -> 7919.41 | M86: =M80+M85 -> 10236.94 | N86: =N80+N85 -> 4941.5 | O86: =B86+C86+D86+E86+F86+G86+H86+I86+J86+K86+L86+M86+N86 -> 55913.22
A90: Accrual Basis Tuesday, April 14, 2026 01:17 PM GMTZ
